lending/lending_fUSD_20240710
["ID","MTS","AMOUNT","RATE_DAILY","PERIOD"]
[331661703,1720608647848,-500.0,0.00013808,2]
[331661704,1720608647858,-500.0,0.00013808,2]
[331661705,1720608647868,-710.99,0.00013808,2]
[331661706,1720608647878,-500.0,0.00013808,2]
[331661707,1720608647888,-500.0,0.00013808,2]
[331661708,1720608647898,-500.0,0.00013808,2]
[331661709,1720608647908,-500.0,0.00013808,2]
[331661710,1720608647918,-500.0,0.00013808,2]
[331661711,1720608647927,-514.45,0.00013808,2]
[331661712,1720608647937,-714.31,0.00013808,2]
[331661713,1720608647947,-775.15,0.00013808,2]
[331661714,1720608647958,-500.0,0.00013808,2]
[331661715,1720608647967,-503.21,0.00013808,2]
[331661716,1720608647977,-500.0,0.00013808,2]
[331661717,1720608647987,-562.51,0.00013808,2]
[331661718,1720608648000,-500.0,0.00013808,2]
[331661719,1720608648010,-500.0,0.00013808,2]
[331661720,1720608648020,-500.0,0.00013808,2]
[331661721,1720608648029,-500.0,0.00013808,2]
[331661722,1720608648039,-806.89,0.00013808,2]
[331661723,1720608648048,-678.81,0.00013808,2]
[331661724,1720608648058,-500.0,0.00013808,2]
[331661725,1720608648067,-564.08,0.00013808,2]
[331661726,1720608648077,-500.0,0.00013808,2]
[331661727,1720608648087,-500.0,0.00013808,2]
[331661728,1720608648096,-376.38512987,0.00013808,2]
[331661729,1720608648107,-500.0,0.00013808,2]
[331661730,1720608648117,-500.0,0.00013808,2]
[331661731,1720608648126,-500.0,0.00013808,2]
[331661732,1720608648135,-443.12659626,0.00013808,2]
[331661733,1720608648145,-500.0,0.00013808,2]
[331661734,1720608648155,-254.01,0.00013808,2]
[331661735,1720608648165,-677.79,0.00013808,2]
[331661736,1720608648174,-500.0,0.00013808,2]
[331661737,1720608648183,-500.0,0.00013808,2]
[331661738,1720608648192,-500.0,0.00013808,2]
[331661739,1720608648202,-500.0,0.00013808,2]
[331661740,1720608648213,-500.0,0.00013808,2]
[331661741,1720608648223,-500.0,0.00013808,2]
[331661742,1720608648233,-500.0,0.00013808,2]
[331661743,1720608648242,-500.0,0.00013808,2]
[331661744,1720608648254,-500.0,0.00013808,2]
[331661745,1720608648263,-572.24240178,0.00013808,2]
[331661746,1720608648272,-500.0,0.00013808,2]
[331661747,1720608648282,-543.62376479,0.00013808,2]
[331661748,1720608648292,-500.0,0.00013808,2]
[331661749,1720608648302,-534.3,0.00013808,2]
[331661750,1720608648311,-500.0,0.00013808,2]
[331661751,1720608648322,-609.5,0.00013808,2]
[331661752,1720608648331,-500.0,0.00013808,2]
[331661753,1720608648342,-522.35,0.00013808,2]
[331661754,1720608648351,-500.0,0.00013808,2]
[331661755,1720608648361,-500.0,0.00013808,2]
[331661756,1720608648372,-573.41,0.00013808,2]
[331661757,1720608648381,-500.0,0.00013808,2]
[331661758,1720608648391,-500.0,0.00013808,2]
[331661759,1720608648401,-500.0,0.00013808,2]
[331661760,1720608648411,-500.0,0.00013808,2]
[331661761,1720608648420,-259.07800391,0.00013808,2]
[331661762,1720608648429,-500.0,0.00013808,2]
[331661763,1720608648438,-500.0,0.00013808,2]
[331661764,1720608648448,-500.0,0.00013808,2]
[331661765,1720608648458,-500.0,0.00013808,2]
[331661766,1720608648467,-500.0,0.00013808,2]
[331661767,1720608648476,-500.0,0.00013808,2]
[331661768,1720608648486,-500.0,0.00013808,2]
[331661769,1720608648495,-500.0,0.00013808,2]
[331661770,1720608648506,-549.95,0.00013808,2]
[331661771,1720608648515,-500.0,0.00013808,2]
[331661772,1720608648524,-500.0,0.00013808,2]
[331661773,1720608648533,-500.0,0.00013808,2]
[331661774,1720608648542,-1006.27,0.00013808,2]
[331661775,1720608648552,-500.0,0.00013808,2]
[331661776,1720608648561,-500.0,0.00013808,2]
[331661777,1720608648570,-500.0,0.00013808,2]
[331661778,1720608648579,-500.0,0.00013808,2]
[331661779,1720608648589,-681.35,0.00013808,2]
[331661780,1720608648598,-586.59,0.00013808,2]
[331661781,1720608648608,-763.77,0.00013808,2]
[331661782,1720608648617,-517.62,0.00013808,2]
[331661783,1720608648627,-503.96,0.00013808,2]
[331661784,1720608648638,-500.0,0.00013808,2]
[331661785,1720608648647,-500.0,0.00013808,2]
[331661786,1720608648657,-500.0,0.00013808,2]
[331661787,1720608648666,-500.0,0.00013808,2]
[331661788,1720608648675,-500.0,0.00013808,2]
[331661789,1720608648685,-500.0,0.00013808,2]
[331661790,1720608648694,-500.0,0.00013808,2]
[331661791,1720608648703,-500.0,0.00013808,2]
[331661792,1720608648712,-500.0,0.00013808,2]
[331661793,1720608648723,-602.22,0.00013808,2]
[331661794,1720608648733,-500.0,0.00013808,2]
[331661795,1720608648742,-500.0,0.00013808,2]
[331661796,1720608648752,-500.0,0.00013808,2]
[331661797,1720608648761,-500.0,0.00013808,2]
[331661798,1720608648771,-500.0,0.00013808,2]
[331661799,1720608648780,-500.0,0.00013808,2]
[331661800,1720608648790,-500.0,0.00013808,2]
[331661801,1720608648801,-500.0,0.00013808,2]
[331661802,1720608648810,-594.67,0.00013808,2]
[331661803,1720608648820,-500.0,0.00013808,2]
[331661804,1720608648829,-500.0,0.00013808,2]
[331661805,1720608648838,-657.27,0.00013808,2]
[331661806,1720608648847,-230.37633291,0.00013808,2]
[331661807,1720608648857,-500.0,0.00013808,2]
[331661808,1720608648866,-500.0,0.00013808,2]
[331661809,1720608648875,-500.0,0.00013808,2]
[331661810,1720608648884,-500.0,0.00013808,2]
[331661811,1720608648893,-500.0,0.00013808,2]
[331661812,1720608648903,-500.0,0.00013808,2]
[331661813,1720608648912,-801.09,0.00013808,2]
[331661814,1720608648922,-500.0,0.00013808,2]
[331661815,1720608648931,-1057.1,0.00013808,2]
[331661816,1720608648941,-500.0,0.00013808,2]
[331661817,1720608648951,-500.0,0.00013808,2]
[331661818,1720608648960,-500.0,0.00013808,2]
[331661819,1720608648970,-500.0,0.00013808,2]
[331661820,1720608648980,-517.53,0.00013808,2]
[331661821,1720608648990,-500.0,0.00013808,2]
[331661822,1720608649000,-500.0,0.00013808,2]
[331661823,1720608649011,-500.0,0.00013808,2]
[331661824,1720608649021,-500.0,0.00013808,2]
[331661825,1720608649030,-551.92,0.00013808,2]
[331661826,1720608649041,-583.49,0.00013808,2]
[331661827,1720608649050,-500.0,0.00013808,2]
[331661828,1720608649060,-500.0,0.00013808,2]
[331661829,1720608649069,-501.70383729,0.00013808,2]
[331661830,1720608649079,-500.0,0.00013808,2]
[331661831,1720608649088,-500.0,0.00013808,2]
[331661832,1720608649098,-500.0,0.00013808,2]
[331661833,1720608649107,-500.0,0.00013808,2]
[331661834,1720608649117,-500.0,0.00013808,2]
[331661835,1720608649126,-500.0,0.00013808,2]
[331661836,1720608649136,-156.52565436,0.00013808,2]
[331661837,1720608649145,-500.0,0.00013808,2]
[331661838,1720608649155,-500.0,0.00013808,2]
[331661839,1720608649165,-500.0,0.00013808,2]
[331661840,1720608649174,-500.0,0.00013808,2]
[331661841,1720608649183,-500.0,0.00013808,2]
[331661842,1720608649192,-654.57,0.00013808,2]
[331661843,1720608649202,-631.51,0.00013808,2]
[331661844,1720608649211,-751.82,0.00013808,2]
[331661845,1720608649222,-500.0,0.00013808,2]
[331661846,1720608649231,-500.0,0.00013808,2]
[331661847,1720608649240,-500.0,0.00013808,2]
[331661848,1720608649251,-500.0,0.00013808,2]
[331661849,1720608649260,-500.0,0.00013808,2]
[331661850,1720608649269,-500.0,0.00013808,2]
[331661851,1720608649278,-500.0,0.00013808,2]
[331661852,1720608649288,-674.68,0.00013808,2]
[331661853,1720608649297,-500.0,0.00013808,2]
[331661854,1720608649307,-500.0,0.00013808,2]
[331661855,1720608649316,-500.0,0.00013808,2]
[331661856,1720608649325,-500.0,0.00013808,2]
[331661857,1720608649334,-589.27,0.00013808,2]
[331661858,1720608649343,-615.24,0.00013808,2]
[331661859,1720608649352,-446.55310787,0.00013808,2]
[331661860,1720608649361,-500.0,0.00013808,2]
[331661861,1720608649371,-1222.95,0.00013808,2]
[331661862,1720608649380,-787.16,0.00013808,2]
[331661863,1720608649389,-500.0,0.00013808,2]
[331661864,1720608649398,-500.0,0.00013808,2]
[331661865,1720608649408,-500.0,0.00013808,2]
[331661866,1720608649417,-500.0,0.00013808,2]
[331661867,1720608649426,-698.98,0.00013808,2]
[331661868,1720608649435,-500.0,0.00013808,2]
[331661869,1720608649444,-500.0,0.00013808,2]
[331661870,1720608649454,-500.0,0.00013808,2]
[331661871,1720608649463,-500.0,0.00013808,2]
[331661872,1720608649471,-500.0,0.00013808,2]
[331661873,1720608649480,-500.0,0.00013808,2]
[331661874,1720608649489,-500.0,0.00013808,2]
[331661875,1720608649501,-500.0,0.00013808,2]
[331661876,1720608649510,-500.0,0.00013808,2]
[331661877,1720608649519,-500.0,0.00013808,2]
[331661878,1720608649528,-500.0,0.00013808,2]
[331661879,1720608649537,-714.67,0.00013808,2]
[331661880,1720608649546,-2867.72,0.00013808,2]
[331661881,1720608649556,-500.0,0.00013808,2]
[331661882,1720608649565,-500.0,0.00013808,2]
[331661883,1720608649575,-500.0,0.00013808,2]
[331661884,1720608649584,-500.0,0.00013808,2]
[331661885,1720608649593,-500.0,0.00013808,2]
[331661886,1720608649603,-787.67,0.00013808,2]
[331661887,1720608649612,-500.0,0.00013808,2]
[331661888,1720608649622,-500.0,0.00013808,2]
[331661889,1720608649631,-500.0,0.00013808,2]
[331661890,1720608649642,-500.0,0.00013808,2]
[331661891,1720608649651,-500.0,0.00013808,2]
[331661892,1720608649660,-500.0,0.00013808,2]
[331661893,1720608649670,-500.0,0.00013808,2]
[331661894,1720608649679,-551.68,0.00013808,2]
[331661895,1720608649689,-500.0,0.00013808,2]
[331661896,1720608649699,-555.9,0.00013808,2]
[331661897,1720608649709,-500.0,0.00013808,2]
[331661898,1720608649718,-500.0,0.00013808,2]
[331661899,1720608649727,-500.0,0.00013808,2]
[331661900,1720608649736,-500.0,0.00013808,2]
[331661901,1720608649748,-500.0,0.00013808,2]
[331661902,1720608649760,-500.0,0.00013808,2]
[331661903,1720608649769,-500.0,0.00013808,2]
[331661904,1720608649778,-500.0,0.00013808,2]
[331661905,1720608649788,-500.0,0.00013808,2]
[331661906,1720608649797,-500.0,0.00013808,2]
[331661907,1720608649806,-1029.44,0.00013808,2]
[331661908,1720608649815,-502.63,0.00013808,2]
[331661909,1720608649825,-765.91,0.00013808,2]
[331661910,1720608649902,-2842.88,0.00013808,2]
[331661911,1720608649911,-908.63,0.00013808,2]
[331661912,1720608649920,-500.0,0.00013808,2]
[331661913,1720608649929,-395.20679579,0.00013808,2]
[331661914,1720608649938,-560.84020733,0.00013808,2]
[331661915,1720608649948,-500.0,0.00013808,2]
[331661916,1720608649956,-500.0,0.00013808,2]
[331661917,1720608649967,-500.0,0.00013808,2]
[331661918,1720608649976,-500.0,0.00013808,2]
[331661919,1720608649985,-1702.55,0.00013808,2]
[331661920,1720608649995,-362.85478935,0.00013808,2]
[331661921,1720608650007,-500.0,0.00013808,2]
[331661922,1720608650016,-500.0,0.00013808,2]
[331661923,1720608650025,-500.0,0.00013808,2]
[331661924,1720608650034,-500.0,0.00013808,2]
[331661925,1720608650044,-182.71025492,0.00013808,2]
[331661926,1720608650054,-374.81011433,0.00013808,2]
[331661927,1720608650063,-500.0,0.00013808,2]
[331661928,1720608650072,-911.33,0.00013808,2]
[331661929,1720608650081,-500.0,0.00013808,2]
[331661930,1720608650091,-500.0,0.00013808,2]
[331661931,1720608650100,-500.0,0.00013808,2]
[331661932,1720608650109,-433.60799417,0.00013808,2]
[331661933,1720608650119,-500.0,0.00013808,2]
[331661934,1720608650129,-500.78,0.00013808,2]
[331661935,1720608650138,-500.0,0.00013808,2]
[331661936,1720608650149,-500.0,0.00013808,2]
[331661937,1720608650158,-500.0,0.00013808,2]
[331661938,1720608650167,-1415.85,0.00013808,2]
[331661939,1720608650178,-751.01,0.00013808,2]
[331661940,1720608650187,-500.0,0.00013808,2]
[331661941,1720608650198,-500.0,0.00013808,2]
[331661942,1720608650208,-500.0,0.00013808,2]
[331661943,1720608650219,-500.0,0.00013808,2]
[331661944,1720608650229,-306.02194001,0.00013808,2]
[331661945,1720608650240,-500.0,0.00013808,2]
[331661946,1720608650252,-500.0,0.00013808,2]
[331661947,1720608650260,-641.64,0.00013808,2]
[331661948,1720608650269,-1080.18,0.00013808,2]
[331661949,1720608650278,-500.0,0.00013808,2]
[331661950,1720608650288,-500.0,0.00013808,2]
[331661951,1720608650297,-659.88,0.00013808,2]
[331661952,1720608650308,-500.0,0.00013808,2]
[331661953,1720608650318,-500.0,0.00013808,2]
[331661954,1720608650329,-500.0,0.00013808,2]
[331661955,1720608650340,-500.0,0.00013808,2]
[331661956,1720608650351,-500.0,0.00013808,2]
[331661957,1720608650361,-500.0,0.00013808,2]
[331661958,1720608650371,-500.0,0.00013808,2]
[331661959,1720608650382,-1073.79,0.00013808,2]
[331661960,1720608650392,-500.0,0.00013808,2]
[331661961,1720608650401,-500.0,0.00013808,2]
[331661962,1720608650411,-500.0,0.00013808,2]
[331661963,1720608650420,-500.0,0.00013808,2]
[331661964,1720608650430,-500.0,0.00013808,2]
[331661965,1720608650438,-500.0,0.00013808,2]
[331661966,1720608650448,-500.0,0.00013808,2]
[331661967,1720608650456,-500.0,0.00013808,2]
[331661968,1720608650465,-500.0,0.00013808,2]
[331661969,1720608650475,-598.63,0.00013808,2]
[331661970,1720608650484,-500.0,0.00013808,2]
[331661971,1720608650494,-500.0,0.00013808,2]
[331661972,1720608650505,-500.0,0.00013808,2]
[331661973,1720608650515,-500.0,0.00013808,2]
[331661974,1720608650524,-500.0,0.00013808,2]
[331661975,1720608650535,-1551.9,0.00013808,2]
[331661976,1720608650545,-500.0,0.00013808,2]
[331661977,1720608650554,-500.0,0.00013808,2]
[331661978,1720608650563,-729.59,0.00013808,2]
[331661979,1720608650572,-500.0,0.00013808,2]
[331661980,1720608650581,-500.0,0.00013808,2]
[331661981,1720608650591,-500.0,0.00013808,2]
[331661982,1720608650599,-543.19,0.00013808,2]
[331661983,1720608650608,-500.0,0.00013808,2]
[331661984,1720608650618,-500.0,0.00013808,2]
[331661985,1720608650628,-663.03,0.00013808,2]
[331661986,1720608650638,-749.17,0.00013808,2]
[331661987,1720608650648,-500.0,0.00013808,2]
[331661988,1720608650658,-500.0,0.00013808,2]
[331661989,1720608650668,-540.55,0.00013808,2]
[331661990,1720608650678,-500.0,0.00013808,2]
[331661991,1720608650688,-500.0,0.00013808,2]
[331661992,1720608650698,-500.0,0.00013808,2]
[331661993,1720608650709,-500.0,0.00013808,2]
[331661994,1720608650718,-717.82,0.00013808,2]
[331661995,1720608650728,-500.0,0.00013808,2]
[331661996,1720608650738,-500.0,0.00013808,2]
[331661997,1720608650751,-500.0,0.00013808,2]
[331661998,1720608650760,-500.0,0.00013808,2]
[331661999,1720608650769,-1078.84,0.00013808,2]
[331662000,1720608650778,-440.83890084,0.00013808,2]
[331662001,1720608650806,-59.16109916,0.00013808,2]
[331662002,1720608650816,-675.43,0.00013808,2]
[331662003,1720608650825,-500.0,0.00013808,2]
[331662004,1720608650835,-827.12,0.00013808,2]
[331662005,1720608650845,-500.0,0.00013808,2]
[331662006,1720608650855,-500.0,0.00013808,2]
[331662007,1720608650864,-478.32937195,0.00013808,2]
[331662008,1720608650876,-214.67062805,0.00013808,2]
[331662009,1720608650886,-500.0,0.00013808,2]
[331662011,1720608650895,-500.0,0.00013808,2]
[331662012,1720608650905,-500.0,0.00013808,2]
[331662013,1720608650915,-892.74,0.00013808,2]
[331662014,1720608650924,-577.71,0.00013808,2]
[331662015,1720608650933,-500.0,0.00013808,2]
[331662016,1720608650943,-500.0,0.00013808,2]
[331662017,1720608650952,-500.0,0.00013808,2]
[331662018,1720608650961,-500.0,0.00013808,2]
[331662019,1720608650970,-500.0,0.00013808,2]
[331662020,1720608650979,-500.0,0.00013808,2]
[331662021,1720608650988,-973.9,0.00013808,2]
[331662022,1720608650999,-601.55,0.00013808,2]
[331662023,1720608651010,-5008.47,0.00013808,2]
[331662024,1720608651019,-500.0,0.00013808,2]
[331662025,1720608651029,-500.0,0.00013808,2]
[331662026,1720608651039,-539.78,0.00013808,2]
[331662027,1720608651048,-931.01,0.00013808,2]
[331662028,1720608651057,-714.68,0.00013808,2]
[331662029,1720608651067,-500.0,0.00013808,2]
[331662030,1720608651078,-858.4,0.00013808,2]
[331662031,1720608651087,-673.12,0.00013808,2]
[331662032,1720608651096,-500.0,0.00013808,2]
[331662033,1720608651106,-565.02634479,0.00013808,2]
[331662034,1720608651119,-39.90365521,0.00013808,2]
[331662035,1720608651129,-500.0,0.00013808,2]
[331662036,1720608651139,-500.0,0.00013808,2]
[331662037,1720608651147,-714.84,0.00013808,2]
[331662038,1720608651157,-566.86,0.00013808,2]
[331662039,1720608651167,-500.0,0.00013808,2]
[331662040,1720608651177,-90.49572759,0.00013808,2]
[331662041,1720608651247,-409.50427241,0.00013808,2]
[331662042,1720608651256,-23.41572759,0.00013808,2]
[331662043,1720608652298,-1106.1106904,0.00012302,2]
[331662044,1720608652308,-500.0,0.00013698,2]
[331662045,1720608652318,-462.24258694,0.00013736,2]
[331662046,1720608652327,-57.48414055,0.00013753,2]
[331662047,1720608652339,-442.51585945,0.00013753,2]
[331662048,1720608652348,-12689.46267829,0.00013799,2]
[331662049,1720608652357,-476.58427241,0.00013808,2]
[331662050,1720608652368,-500.0,0.00013808,2]
[331662051,1720608652378,-500.0,0.00013808,2]
[331662052,1720608652387,-937.91,0.00013808,2]
[331662053,1720608652398,-500.0,0.00013808,2]
[331662054,1720608652408,-500.0,0.00013808,2]
[331662055,1720608652419,-500.0,0.00013808,2]
[331662056,1720608652428,-500.0,0.00013808,2]
[331662057,1720608652439,-500.0,0.00013808,2]
[331662058,1720608652449,-500.0,0.00013808,2]
[331662059,1720608652460,-610.65,0.00013808,2]
[331662060,1720608652470,-500.0,0.00013808,2]
[331662061,1720608652479,-500.0,0.00013808,2]
[331662062,1720608652488,-505.26,0.00013808,2]
[331662063,1720608652498,-257.25743054,0.00013808,2]
[331662064,1720608654956,-1405.56561108,0.00013799,2]
[331662065,1720608654984,-332.57177552,0.00013799,2]
[331662066,1720608654996,-722.19529931,0.00013799,2]
[331662067,1720608655009,-1479.06618087,0.00013799,2]
[331662068,1720608655020,-2142.33592766,0.00013799,2]
[331662069,1720608655032,-6607.72788385,0.00013799,2]
[331662070,1720608655043,-242.74256946,0.00013808,2]
[331662071,1720608655052,-500.0,0.00013808,2]
[331662072,1720608655062,-652.88,0.00013808,2]
[331662073,1720608655073,-500.0,0.00013808,2]
[331662074,1720608655083,-500.0,0.00013808,2]
[331662075,1720608655093,-150.0,0.00013818,2]
[331662076,1720608655103,-150.0,0.00013818,2]
[331662077,1720608655113,-516.0,0.00013827,2]
[331662078,1720608655123,-150.0,0.0001383,2]
[331662079,1720608655134,-150.0,0.0001383,2]
[331662080,1720608655144,-150.0,0.00013848,2]
[331662081,1720608655154,-155.31939259,0.00013849,2]
[331662082,1720608655164,-150.0,0.00013849,2]
[331662083,1720608655174,-305.4281607,0.00013857,2]
[331662084,1720608655184,-150.0,0.00013857,2]
[331662085,1720608655194,-150.0,0.00013858,2]
[331662086,1720608655205,-150.0,0.00013858,2]
[331662087,1720608655214,-11690.2064378,0.0001386,2]
[331662088,1720608655224,-521.6,0.00013863,2]
[331662089,1720608655234,-500.0,0.00013863,2]
[331662090,1720608655244,-500.0,0.00013863,2]
[331662091,1720608655254,-166.55673861,0.00013863,2]
[331662092,1720608655263,-500.0,0.00013863,2]
[331662093,1720608655273,-500.0,0.00013863,2]
[331662094,1720608655282,-500.0,0.00013863,2]
[331662095,1720608655292,-500.0,0.00013863,2]
[331662096,1720608655302,-500.0,0.00013863,2]
[331662097,1720608655311,-500.0,0.00013863,2]
[331662098,1720608655320,-500.0,0.00013863,2]
[331662099,1720608655329,-500.0,0.00013863,2]
[331662100,1720608655339,-500.0,0.00013863,2]
[331662101,1720608655348,-157.13496371,0.00013863,2]
[331662102,1720608655359,-500.0,0.00013863,2]
[331662103,1720608655368,-500.0,0.00013863,2]
[331662104,1720608655378,-500.0,0.00013863,2]
[331662105,1720608655387,-611.07,0.00013863,2]
[331662106,1720608655397,-500.0,0.00013863,2]
[331662107,1720608655406,-500.0,0.00013863,2]
[331662108,1720608655416,-500.0,0.00013863,2]
[331662109,1720608655426,-500.0,0.00013863,2]
[331662110,1720608655436,-500.0,0.00013863,2]
[331662111,1720608655446,-383.40024329,0.00013863,2]
[331662112,1720608655456,-500.0,0.00013863,2]
[331662113,1720608655466,-500.0,0.00013863,2]
[331662114,1720608655477,-500.0,0.00013863,2]
[331662115,1720608655486,-500.0,0.00013863,2]
[331662116,1720608655497,-500.0,0.00013863,2]
[331662117,1720608655507,-574.97,0.00013863,2]
[331662118,1720608655516,-500.0,0.00013863,2]
[331662119,1720608655526,-500.0,0.00013863,2]
[331662120,1720608655535,-500.0,0.00013863,2]
[331662121,1720608655547,-500.0,0.00013863,2]
[331662122,1720608655558,-500.0,0.00013863,2]
[331662123,1720608655569,-500.0,0.00013863,2]
[331662124,1720608655580,-500.0,0.00013863,2]
[331662125,1720608655592,-613.27591406,0.00013863,2]
[331662126,1720608655603,-500.0,0.00013863,2]
[331662127,1720608655613,-500.0,0.00013863,2]
[331662128,1720608655625,-500.0,0.00013863,2]
[331662129,1720608655636,-500.0,0.00013863,2]
[331662130,1720608655648,-500.0,0.00013863,2]
[331662131,1720608655660,-500.0,0.00013863,2]
[331662132,1720608655670,-471.64565741,0.00013863,2]
[331662133,1720608655680,-500.0,0.00013863,2]
[331662134,1720608655689,-500.0,0.00013863,2]
[331662135,1720608655698,-500.0,0.00013863,2]
[331662136,1720608655708,-500.0,0.00013863,2]
[331662137,1720608655717,-411.45289015,0.00013863,2]
[331662138,1720608655726,-500.0,0.00013863,2]
[331662139,1720608655736,-506.46,0.00013863,2]
[331662140,1720608655746,-500.0,0.00013863,2]
[331662141,1720608655756,-500.0,0.00013863,2]
[331662142,1720608655766,-500.0,0.00013863,2]
[331662143,1720608655776,-500.0,0.00013863,2]
[331662144,1720608655785,-500.0,0.00013863,2]
[331662145,1720608655795,-1243.95,0.00013863,2]
[331662146,1720608655805,-500.0,0.00013863,2]
[331662147,1720608655815,-514.21,0.00013863,2]
[331662148,1720608655825,-500.0,0.00013863,2]
[331662149,1720608655834,-594.74,0.00013863,2]
[331662150,1720608655844,-500.0,0.00013863,2]
[331662151,1720608655853,-500.0,0.00013863,2]
[331662152,1720608655863,-500.0,0.00013863,2]
[331662153,1720608655873,-500.0,0.00013863,2]
[331662154,1720608655882,-500.0,0.00013863,2]
[331662155,1720608655892,-500.0,0.00013863,2]
[331662156,1720608655902,-500.0,0.00013863,2]
[331662157,1720608655911,-589.66178626,0.00013863,2]
[331662158,1720608655920,-500.0,0.00013863,2]
[331662159,1720608655930,-500.0,0.00013863,2]
[331662160,1720608655939,-500.0,0.00013863,2]
[331662161,1720608655949,-710.6,0.00013863,2]
[331662162,1720608655958,-500.0,0.00013863,2]
[331662163,1720608655968,-500.0,0.00013863,2]
[331662164,1720608655978,-339.19815865,0.00013863,2]
[331662165,1720608655988,-391.87678083,0.00013863,2]
[331662166,1720608655997,-500.0,0.00013863,2]
[331662167,1720608656007,-717.74,0.00013863,2]
[331662168,1720608656017,-500.0,0.00013863,2]
[331662169,1720608656026,-500.0,0.00013863,2]
[331662170,1720608656036,-500.0,0.00013863,2]
[331662171,1720608656047,-500.0,0.00013863,2]
[331662172,1720608656056,-500.0,0.00013863,2]
[331662173,1720608656429,-500.0,0.00013863,2]
[331662174,1720608656448,-500.0,0.00013863,2]
[331662175,1720608656458,-500.0,0.00013863,2]
[331662176,1720608656468,-500.0,0.00013863,2]
[331662177,1720608656478,-500.0,0.00013863,2]
[331662178,1720608656488,-500.0,0.00013863,2]
[331662179,1720608656498,-529.0,0.00013863,2]
[331662180,1720608656508,-887.15,0.00013863,2]
[331662181,1720608656517,-500.0,0.00013863,2]
[331662182,1720608656527,-500.0,0.00013863,2]
[331662183,1720608656537,-500.0,0.00013863,2]
[331662184,1720608656547,-772.64,0.00013863,2]
[331662185,1720608656556,-500.0,0.00013863,2]
[331662186,1720608656565,-500.0,0.00013863,2]
[331662187,1720608656575,-548.7,0.00013863,2]
[331662188,1720608656584,-563.33,0.00013863,2]
[331662189,1720608656595,-500.0,0.00013863,2]
[331662190,1720608656605,-500.0,0.00013863,2]
[331662191,1720608656615,-500.0,0.00013863,2]
[331662192,1720608656627,-500.0,0.00013863,2]
[331662193,1720608656638,-500.0,0.00013863,2]
[331662194,1720608656648,-500.0,0.00013863,2]
[331662195,1720608656657,-500.0,0.00013863,2]
[331662196,1720608656666,-632.96,0.00013863,2]
[331662197,1720608656677,-500.0,0.00013863,2]
[331662198,1720608656687,-500.0,0.00013863,2]
[331662199,1720608656698,-500.0,0.00013863,2]
[331662200,1720608656708,-500.0,0.00013863,2]
[331662201,1720608656719,-570.77,0.00013863,2]
[331662202,1720608656732,-500.0,0.00013863,2]
[331662203,1720608656741,-500.0,0.00013863,2]